bitfinex-derivatives/quotes_SOLF0:USTF0_20250328
["timestamp","ask_amount","ask_price","bid_price","bid_amount"]
[1743174107106,0.05644244,129.79,129.78,7.7082]
[1743174107299,0.05644244,129.79,129.77,0.04470657]
[1743174107902,0.05644244,129.79,129.78,7.7082]
[1743174108603,4.0339,129.84,129.81,7.7061]
[1743174108798,4.0339,129.84,129.78,13.46169026]
[1743174108799,32.3139,129.84,129.78,13.46169026]
[1743174109195,40.0188,129.84,129.81,7.7061]
[1743174109604,28.28,129.84,129.78,13.46169026]
[1743174109906,0.05332528,129.84,129.81,0.05860812]
[1743174110097,7.7035,129.86,129.81,0.05860812]
[1743174110298,0.04874324,129.84,129.82,7.7053]
[1743174110605,0.04874324,129.84,129.81,0.05860812]
[1743174110901,0.04874324,129.84,129.83,7.7053]
[1743174112103,0.04874324,129.84,129.81,0.05860812]
[1743174112699,0.04874324,129.84,129.81,7.76470812]
[1743174113100,0.04874324,129.84,129.81,0.05860812]
[1743174113506,7.7059,129.82,129.81,0.05860812]
[1743174114509,7.7056,129.83,129.81,0.05860812]
[1743174114698,0.04874324,129.84,129.81,0.05860812]
[1743174115104,7.7056,129.83,129.81,0.05860812]
[1743174115298,8.66429629,129.84,129.81,0.05860812]
[1743174115706,16.32145305,129.82,129.81,0.05860812]
[1743174117212,8.61555305,129.81,129.76,8.61555305]
[1743174117508,8.61555305,129.81,129.77,7.7085]
[1743174117710,7.7073,129.8,129.77,7.7085]
[1743174118212,7.75856081,129.8,129.77,7.75104089]
[1743174118815,7.7076,129.79,129.77,7.75104089]
[1743174119315,7.7076,129.79,129.77,0.04254089]
[1743174119517,8.66681386,129.8,129.77,0.04254089]
[1743174119917,7.7079,129.79,129.77,0.04254089]
[1743174120117,8.66681386,129.8,129.77,0.04254089]
[1743174120415,7.7079,129.79,129.77,0.04254089]
[1743174120617,8.66681386,129.8,129.77,0.04254089]
[1743174121213,7.708,129.79,129.77,0.04254089]
[1743174122513,16.37421386,129.8,129.77,7.75114089]
[1743174122720,8.66681386,129.8,129.77,7.75114089]
[1743174123018,7.7082,129.78,129.77,0.04254089]
[1743174124016,16.32375305,129.78,129.77,0.04254089]
[1743174127520,7.7107,129.74,129.71,16.32765305]
[1743174128426,7.7107,129.74,129.72,7.7118]
[1743174128626,7.76976594,129.74,129.72,7.7118]
[1743174128926,7.7114,129.73,129.71,8.61555305]
[1743174129121,7.7114,129.73,129.7,44.54815305]
[1743174129324,8.61555305,129.72,129.69,83.84684983]
[1743174129520,28.22,129.73,129.69,83.84684983]
[1743174129723,0.05906594,129.74,129.71,8.61555305]
[1743174130226,0.05906594,129.74,129.72,8.61555305]
[1743174130526,0.05906594,129.74,129.72,16.32705305]
[1743174130724,0.05906594,129.74,129.71,8.61555305]
[1743174131931,0.05906594,129.74,129.72,7.7114]
[1743174132425,8.61555305,129.73,129.67,83.84684983]
[1743174132624,8.61555305,129.73,129.68,8.61555305]
[1743174132830,0.05107721,129.71,129.7,8.61555305]
[1743174133029,7.7112,129.73,129.7,7.7126]
[1743174133233,0.05113947,129.72,129.67,83.84684983]
[1743174133437,16.37879252,129.72,129.69,7.7135]
[1743174133937,0.05113947,129.72,129.7,7.713]
[1743174134136,0.05113947,129.72,129.68,8.61555305]
[1743174134436,0.05113947,129.72,129.69,8.61555305]
[1743174134626,0.05113947,129.72,129.67,112.24684983]
[1743174134627,0.05113947,129.72,129.71,7.7124]
[1743174135032,0.05113947,129.72,129.7,8.61555305]
[1743174135323,0.05113947,129.72,129.71,8.61555305]
[1743174135634,0.05113947,129.72,129.71,16.32795305]
[1743174136352,0.05113947,129.72,129.71,8.61555305]
[1743174136653,0.05113947,129.72,129.68,8.61555305]
[1743174136847,7.76303947,129.72,129.68,8.61555305]
[1743174137048,8.61555305,129.71,129.66,37.01555305]
[1743174137346,16.32815305,129.71,129.66,8.61555305]
[1743174137545,16.32815305,129.71,129.68,7.7139]
[1743174137947,16.38601127,129.71,129.68,7.7139]
[1743174138147,7.7131,129.7,129.68,7.7139]
[1743174139046,7.7131,129.7,129.67,7.7144]
[1743174139244,7.7137,129.69,129.65,28.4]
[1743174139747,0.05641419,129.68,129.66,7.7149]
[1743174140251,0.05641419,129.68,129.65,28.4]
[1743174140547,0.05641419,129.68,129.67,7.7148]
[1743174140747,0.05641419,129.68,129.65,28.4]
[1743174140948,0.05641419,129.68,129.66,7.7149]
[1743174141254,0.05641419,129.68,129.65,28.4]
[1743174141543,0.05641419,129.68,129.66,7.7149]
[1743174141951,0.05641419,129.68,129.65,28.4]
[1743174142249,0.05641419,129.68,129.66,13.48742583]
[1743174142449,0.05641419,129.68,129.67,7.7148]
[1743174148059,0.05641419,129.68,129.67,7.7148]
[1743174148352,1.419e-05,129.68,129.67,7.7148]
[1743174148562,28.38,129.75,129.7,7.7128]
[1743174149056,28.38,129.75,129.69,7.7133]
[1743174149245,28.38,129.75,129.68,28.38]
[1743174149655,0.04891895,129.73,129.7,0.05225093]
[1743174149847,7.76041895,129.73,129.7,7.76495093]
[1743174150051,0.04891895,129.73,129.7,7.76495093]
[1743174150252,0.04891895,129.73,129.7,0.05225093]
[1743174150453,7.712,129.72,129.7,0.05225093]
[1743174152460,7.712,129.72,129.7,7.76515093]
[1743174153457,7.712,129.72,129.7,0.05225093]
[1743174154048,7.712,129.72,129.7,7.76515093]
[1743174154451,7.712,129.72,129.7,0.05225093]
[1743174155154,7.76041895,129.73,129.7,7.76495093]
[1743174155356,0.04891895,129.73,129.7,7.76495093]
[1743174155958,0.04891895,129.73,129.7,0.05225093]
[1743174156459,0.04891895,129.73,129.71,7.7121]
[1743174157457,7.76051895,129.73,129.7,7.76465093]
[1743174157757,7.76051895,129.73,129.7,0.05225093]
[1743174158759,7.76051895,129.73,129.71,7.7124]
[1743174158960,7.7118,129.72,129.7,0.05225093]
[1743174159161,8.6784355,129.73,129.7,0.05225093]
[1743174159361,0.04891895,129.73,129.71,7.7121]
[1743174159761,7.76051895,129.73,129.7,7.76495093]
[1743174161261,7.76051895,129.73,129.71,7.7123]
[1743174161466,7.76051895,129.73,129.7,0.05225093]
[1743174161664,7.7124,129.71,129.7,0.05225093]
[1743174161859,16.34191655,129.71,129.7,0.05225093]
[1743174162165,7.7154,129.66,129.65,125.77027475]
[1743174162363,28.44,129.69,129.65,125.77027475]
[1743174162558,8.62951655,129.67,129.66,125.77027475]
[1743174162760,16.34461655,129.67,129.66,125.77027475]
[1743174163161,7.7151,129.67,129.66,125.77027475]
[1743174163361,7.7148,129.67,129.66,125.77027475]
[1743174163557,16.34431655,129.67,129.66,125.77027475]
[1743174163959,0.04954466,129.68,129.66,125.77027475]
[1743174164463,0.04954466,129.68,129.66,142.1145913]
[1743174164656,0.04954466,129.68,129.66,134.3997913]
[1743174164853,0.04954466,129.68,129.66,125.77027475]
[1743174165163,0.04954466,129.68,129.67,7.7148]
[1743174166663,0.04954466,129.68,129.67,21.20218425]
[1743174167164,0.04954466,129.68,129.67,7.7148]
[1743174170368,0.04954466,129.68,129.66,36.3351]
[1743174170663,0.04954466,129.68,129.66,28.62]
[1743174171164,0.04954466,129.68,129.66,36.3351]
[1743174171467,0.04954466,129.68,129.66,7.7151]
[1743174172659,0.04954466,129.68,129.67,7.7148]
[1743174180474,0.04954466,129.68,129.66,7.7151]
[1743174180769,0.04954466,129.68,129.64,42.06738425]
[1743174181576,0.04954466,129.68,129.67,7.7148]
[1743174182173,7.76374466,129.68,129.66,7.7151]
[1743174182472,7.76374466,129.68,129.64,42.06738425]
[1743174183473,0.04954466,129.68,129.64,42.06738425]
[1743174183676,0.04954466,129.68,129.67,7.7148]
[1743174184966,0.04954466,129.68,129.67,16.34595663]
[1743174188578,40.56835663,129.75,129.67,8.63115663]
[1743174188878,39.6473,129.75,129.71,8.63115663]
[1743174189071,11.1473,129.75,129.72,7.7114]
[1743174189271,11.1473,129.75,129.71,8.63115663]
[1743174189471,7.7095,129.76,129.72,8.63115663]
[1743174189681,0.05032905,129.74,129.73,7.7112]
[1743174189876,8.63115663,129.78,129.73,8.63115663]
[1743174190076,8.63115663,129.75,129.74,0.05313932]
[1743174190277,8.63115663,129.75,129.69,37.15115663]
[1743174190577,7.7123,129.72,129.68,37.31115663]
[1743174190772,8.63115663,129.73,129.68,122.85739237]
[1743174191477,8.68180725,129.72,129.68,130.57109237]
[1743174191974,8.68180725,129.72,129.69,7.7135]
[1743174192167,0.05065062,129.72,129.68,8.63115663]
[1743174192368,7.7128,129.71,129.68,8.63115663]
[1743174192682,7.7128,129.71,129.68,16.34505663]
[1743174194285,7.7132,129.71,129.68,16.34585663]
[1743174194979,7.7138,129.7,129.67,19.87685663]
[1743174195184,8.63115663,129.71,129.66,37.31115663]
[1743174195484,8.63115663,129.69,129.65,19.28]
[1743174195889,28.69234407,129.7,129.65,19.28]
[1743174195890,8.63115663,129.68,129.65,19.28]
[1743174196082,8.63115663,129.67,129.65,19.28]
[1743174196386,7.7161,129.66,129.65,19.28]
[1743174196786,8.68631828,129.67,129.65,19.28]
[1743174196979,0.05516165,129.67,129.65,19.28]
[1743174197288,0.05516165,129.67,129.65,27.91115663]
[1743174197481,0.05516165,129.67,129.65,35.62765663]
[1743174197986,0.05516165,129.67,129.65,16.34765663]
[1743174198288,0.05516165,129.67,129.64,101.89439237]
[1743174198487,0.05516165,129.67,129.63,8.63115663]
[1743174198785,8.68631828,129.67,129.62,37.27115663]
[1743174198997,16.40211828,129.67,129.62,37.27115663]
[1743174199183,0.05516165,129.67,129.62,7.7182]
[1743174199486,7.7165,129.66,129.62,7.7182]
[1743174199687,7.7165,129.66,129.61,19.28]
[1743174199984,7.7169,129.65,129.62,7.7182]
[1743174200191,28.71516165,129.67,129.62,7.7182]
[1743174200395,28.71516165,129.67,129.63,7.7177]
[1743174200588,7.7166,129.66,129.63,7.7177]
[1743174200887,28.71516165,129.67,129.61,19.28]
[1743174200888,0.05516165,129.67,129.61,19.28]
[1743174201097,0.05516165,129.67,129.61,32.77711761]
[1743174201595,0.05516165,129.67,129.65,7.7166]
[1743174202389,0.05516165,129.67,129.63,13.49711761]
[1743174202690,0.05516165,129.67,129.65,13.49711761]
[1743174202994,0.05516165,129.67,129.66,7.7161]
[1743174203896,7.713,129.72,129.69,7.7139]
[1743174204694,7.7132,129.71,129.69,7.7139]
[1743174204896,7.7132,129.71,129.68,7.7148]
[1743174205094,0.05098643,129.71,129.69,0.05192043]
[1743174205597,0.05098643,129.71,129.69,7.76582043]
[1743174205892,0.05098643,129.71,129.7,7.7138]
[1743174207389,13.49711761,129.78,129.71,13.49711761]
[1743174207595,7.7105,129.76,129.71,13.49711761]
[1743174207796,7.7105,129.76,129.73,7.7114]
[1743174208091,28.7,129.79,129.73,13.49711761]
[1743174208402,0.05215958,129.77,129.75,0.05813681]
[1743174208790,7.7107,129.76,129.75,0.05813681]
[1743174209197,7.7119,129.74,129.68,250.0475]
[1743174209399,7.7119,129.74,129.71,5.51]
[1743174209699,45.58841761,129.76,129.71,5.51]
[1743174210291,45.58841761,129.76,129.71,13.2231]
[1743174210594,0.05886105,129.75,129.72,0.04857987]
[1743174211093,7.712,129.73,129.72,0.04857987]
[1743174211298,28.7,129.73,129.71,5.51]
[1743174211694,7.7126,129.72,129.71,5.51]
[1743174212589,36.4121,129.73,129.71,5.51]
[1743174212796,0.05886105,129.75,129.69,13.49711761]
[1743174213100,11.0817,129.76,129.69,13.49711761]
[1743174213300,0.05098947,129.73,129.72,7.7126]
[1743174215696,291.63737207,129.84,129.75,7.7103]
[1743174215900,3.6082,129.83,129.73,13.49711761]
[1743174216098,28.76,129.82,129.73,13.49711761]
[1743174216298,28.76,129.82,129.75,7.7105]
[1743174216503,28.76,129.82,129.73,13.49711761]
[1743174216703,6.9785,129.83,129.77,13.49711761]
[1743174216903,0.05303027,129.79,129.78,7.709]
[1743174217199,35.7385,129.83,129.77,13.54810708]
[1743174217409,0.04949343,129.8,129.77,13.54810708]
[1743174217601,0.04949343,129.8,129.79,7.7084]
[1743174217900,0.04949343,129.8,129.77,0.05098947]
[1743174218106,7.7088,129.79,129.77,0.05098947]
[1743174218705,7.7084,129.79,129.77,0.05098947]
[1743174219005,0.04949343,129.8,129.77,0.05098947]
[1743174219198,28.92949343,129.8,129.77,0.05098947]
[1743174220096,13.49711761,129.78,129.71,13.49711761]
[1743174220698,7.7106,129.76,129.72,7.7123]
[1743174221006,13.49711761,129.78,129.7,45.82331761]
[1743174221207,7.7635679,129.75,129.71,7.7128]
[1743174221706,7.7635679,129.75,129.7,45.82331761]
[1743174221907,7.7114,129.74,129.71,7.7128]
[1743174222108,7.7114,129.74,129.7,45.82331761]
[1743174222308,7.7114,129.74,129.71,7.7131]
[1743174222510,7.7635679,129.75,129.71,7.7131]
[1743174222711,0.0524679,129.75,129.7,45.82331761]
[1743174222908,0.0524679,129.75,129.69,7.7142]
[1743174223109,0.0524679,129.75,129.68,231.02161761]
[1743174223110,7.7123,129.73,129.68,259.90161761]
[1743174223407,0.05614911,129.72,129.68,259.90161761]
[1743174224612,0.05614911,129.72,129.71,7.7132]
[1743174225113,0.05614911,129.72,129.7,21.21061761]
[1743174225312,0.05614911,129.72,129.7,7.7135]
[1743174225811,0.05614911,129.72,129.69,7.7142]
[1743174226014,0.05614911,129.72,129.68,3.4836]
[1743174226512,7.7133,129.71,129.68,11.1982]
[1743174226908,7.7135,129.71,129.67,51.8752]
[1743174227113,0.05614911,129.72,129.67,44.16]
[1743174227610,0.05614911,129.72,129.67,23.0552]
[1743174227917,28.8,129.71,129.67,15.34]
[1743174228117,7.7149,129.68,129.67,15.34]
[1743174228313,17.15201761,129.7,129.63,7.7175]
[1743174228617,0.05857366,129.69,129.62,54.67711761]
[1743174229515,0.05857366,129.69,129.62,41.18]
[1743174229516,42.29711761,129.68,129.62,41.18]
[1743174229816,7.7179,129.63,129.62,41.18]
[1743174230021,0.05067757,129.66,129.62,21.9]
[1743174230210,0.05067757,129.66,129.61,85.54623574]
[1743174230514,7.7174,129.64,129.61,85.54623574]
[1743174230719,7.7174,129.64,129.6,7.7194]
[1743174231016,28.82,129.65,129.57,239.28926009]
[1743174231310,0.05753982,129.63,129.58,13.49711761]
[1743174231714,0.05753982,129.63,129.6,13.49711761]
[1743174232213,0.05753982,129.63,129.61,7.7188]
[1743174232619,0.05753982,129.63,129.58,42.31711761]
[1743174233013,0.05753982,129.63,129.61,7.7186]
[1743174233320,0.05753982,129.63,129.6,13.49711761]
[1743174233514,0.05753982,129.63,129.61,7.7188]
[1743174233711,0.05753982,129.63,129.58,42.31711761]
[1743174234018,0.05753982,129.63,129.59,7.72]
[1743174234418,0.05753982,129.63,129.58,42.31711761]
[1743174234716,7.7185,129.62,129.59,7.7203]
[1743174234909,0.05753982,129.63,129.58,13.49711761]
[1743174235106,0.05753982,129.63,129.57,3.3517]
[1743174235406,42.49711761,129.62,129.54,227.53801761]
[1743174235814,0.05170626,129.59,129.54,227.53801761]
[1743174236521,7.7218,129.57,129.54,214.0409]
[1743174236718,0.05170626,129.59,129.52,7.7242]
[1743174236912,29.02,129.59,129.51,42.51711761]
[1743174237116,7.7222,129.56,129.51,50.24181761]
[1743174237312,7.7222,129.56,129.51,42.51711761]
[1743174237713,7.77606882,129.57,129.52,7.7245]
[1743174238014,0.05446882,129.57,129.51,42.51711761]
[1743174238319,0.05446882,129.57,129.53,13.49711761]
[1743174238820,0.05446882,129.57,129.54,7.7227]
[1743174239824,0.05446882,129.57,129.54,13.2527]
[1743174240325,0.05446882,129.57,129.54,32.5427]
[1743174242220,7.77596882,129.57,129.54,32.5427]
[1743174242730,0.05446882,129.57,129.54,32.5427]
[1743174243427,0.05446882,129.57,129.55,7.7227]
[1743174243726,0.05446882,129.57,129.54,32.5431]
[1743174244823,0.05446882,129.57,129.54,24.82]
[1743174245224,7.77626882,129.57,129.54,32.5431]
[1743174245926,0.05446882,129.57,129.56,7.7221]
[1743174246229,21.62401153,129.66,129.55,21.62401153]
[1743174246422,31.5965,129.64,129.55,21.62401153]
[1743174247115,31.5965,129.64,129.56,19.29]
[1743174247322,0.05425604,129.61,129.59,0.05418287]
[1743174247629,7.7197,129.6,129.59,0.05418287]
[1743174247927,0.05425604,129.61,129.59,0.05418287]
[1743174248421,28.94,129.6,129.59,0.05418287]
[1743174248625,28.94,129.6,129.56,19.29]
[1743174248818,7.7215,129.57,129.56,19.29]
[1743174249527,36.6815,129.57,129.56,19.29]
[1743174253332,7.7227,129.55,129.54,24.82]
[1743174253724,7.7227,129.55,129.54,19.29]
[1743174254326,50.58401153,129.57,129.47,31.6889]
[1743174254327,7.7251,129.51,129.47,2.8089]
[1743174254528,7.7251,129.51,129.47,10.5361]
[1743174254728,0.04880913,129.5,129.47,10.5361]
[1743174255135,7.77450913,129.5,129.46,7.7279]
[1743174255325,0.04880913,129.5,129.45,2.9432]
[1743174255523,21.62401153,129.49,129.39,125.77027475]
[1743174255732,28.98880913,129.5,129.42,5.7521]
[1743174256027,0.04932796,129.46,129.42,2.8089]
[1743174256627,7.7296,129.44,129.42,2.8089]
[1743174257326,7.7289,129.45,129.42,2.8089]
[1743174257528,0.04932796,129.46,129.42,2.8089]
[1743174257728,0.04932796,129.46,129.42,10.539]
[1743174258027,0.04932796,129.46,129.42,2.8089]
[1743174258229,7.77782796,129.46,129.42,2.8089]
[1743174258835,0.04932796,129.46,129.42,2.8089]
[1743174259335,7.77742796,129.46,129.42,2.8089]
[1743174259532,0.04932796,129.46,129.42,2.8089]
[1743174259738,0.04932796,129.46,129.42,24.43291153]
[1743174260638,7.7254,129.51,129.46,7.7276]
[1743174260837,36.6054,129.51,129.46,7.7276]
[1743174261338,28.88,129.51,129.46,7.7276]
[1743174261837,0.05109434,129.5,129.47,0.04961391]
[1743174262838,0.05109434,129.5,129.47,7.77671391]
[1743174263141,0.05109434,129.5,129.47,0.04961391]
[1743174264432,0.05109434,129.5,129.49,7.7263]
[1743174264827,283.56,129.54,129.49,7.7263]
[1743174265033,283.56,129.54,129.48,2.6666]
[1743174265034,28.84,129.54,129.5,7.7253]
[1743174265334,28.82,129.56,129.5,7.7253]
[1743174265835,28.82,129.56,129.48,24.29061153]
[1743174266035,0.05283126,129.54,129.52,0.0569937]
[1743174269529,7.77613126,129.54,129.52,0.0569937]
[1743174269930,0.05283126,129.54,129.52,0.0569937]
[1743174271034,0.05283126,129.54,129.52,7.7811937]
[1743174271239,0.05283126,129.54,129.52,0.0569937]
[1743174271535,0.05283126,129.54,129.52,7.7811937]
[1743174273443,7.7225,129.56,129.52,7.7811937]
[1743174273838,7.7218,129.57,129.53,7.7238]
[1743174274038,36.4418,129.57,129.53,7.7238]
[1743174274240,7.7222,129.56,129.53,7.7238]
[1743174274541,7.78040174,129.56,129.53,7.7238]
[1743174274742,7.78040174,129.56,129.52,7.7811937]
[1743174275445,7.7228,129.55,129.52,0.0569937]
[1743174275748,0.05820174,129.56,129.52,0.0569937]
[1743174276046,0.05820174,129.56,129.54,13.52127607]
[1743174276542,0.05820174,129.56,129.53,10.1942]
[1743174276939,0.05820174,129.56,129.53,2.4706]
[1743174277145,28.76,129.6,129.53,2.4706]
[1743174277337,28.76,129.6,129.54,13.52127607]
[1743174277535,7.7211,129.58,129.55,7.7224]
[1743174277737,28.74,129.61,129.55,7.7224]
[1743174278244,7.77127694,129.59,129.57,0.04941744]
[1743174278437,0.05057694,129.59,129.57,0.04941744]
[1743174278745,7.7209,129.58,129.57,0.04941744]
[1743174279943,7.77107694,129.59,129.57,0.04941744]
[1743174280345,0.05057694,129.59,129.57,0.04941744]
[1743174281042,7.7209,129.58,129.57,0.04941744]
[1743174282349,49.92217607,129.58,129.57,1.744e-05]
[1743174283149,36.4009,129.58,129.57,1.744e-05]
[1743174283450,0.05057694,129.59,129.57,1.744e-05]
[1743174284044,7.7209,129.58,129.57,1.744e-05]
[1743174286357,28.64,129.65,129.57,28.64001744]
[1743174286648,28.64,129.65,129.58,13.52127607]
[1743174286849,7.72,129.6,129.58,16.10887607]
[1743174287051,7.72,129.6,129.58,18.65447607]
[1743174287349,268.28127607,129.66,129.58,18.65447607]
[1743174287550,254.76,129.66,129.6,13.52127607]
[1743174287754,0.04955499,129.63,129.6,42.16127607]
[1743174287943,7.76745499,129.63,129.62,0.04991286]
[1743174290349,28.6,129.69,129.62,0.04991286]
[1743174290553,57.54927607,129.7,129.62,0.04991286]
[1743174290751,57.54927607,129.7,129.6,42.16127607]
[1743174291054,42.12127607,129.7,129.62,13.52127607]
[1743174291255,13.52127607,129.7,129.63,31.2457]
[1743174291450,0.05092345,129.67,129.65,0.05928957]
[1743174291642,13.52127607,129.72,129.65,0.05928957]
[1743174291845,0.05929616,129.67,129.65,0.05928957]
[1743174292047,7.7161,129.66,129.65,0.05928957]
[1743174293052,28.6,129.73,129.65,0.05928957]
[1743174293255,28.6,129.73,129.64,16.13967607]
[1743174293554,57.50427607,129.74,129.66,13.52127607]
[1743174293746,0.05454344,129.7,129.67,0.05838981]
[1743174294453,7.7149,129.68,129.67,0.05838981]
[1743174298655,0.05454344,129.7,129.67,0.05838981]
[1743174299049,7.7148,129.69,129.67,0.05838981]
[1743174299452,0.05454344,129.7,129.68,13.52127607]
[1743174299753,7.76864344,129.7,129.68,13.52127607]
[1743174300355,0.05454344,129.7,129.68,16.23157607]
[1743174300756,7.7143,129.69,129.68,16.23157607]
[1743174301051,0.05454344,129.7,129.68,16.23157607]
[1743174301256,7.713,129.72,129.68,23.94617607]
[1743174301550,283.16,129.78,129.7,13.52127607]
[1743174301752,28.5,129.78,129.7,13.52127607]
[1743174301950,7.7122,129.73,129.7,16.11187607]
[1743174302147,28.5,129.78,129.7,16.11187607]
[1743174302552,0.05071672,129.75,129.73,0.0547832]
[1743174303056,7.7114,129.74,129.73,0.0547832]
[1743174303954,0.05071672,129.75,129.73,0.0547832]
[1743174305359,7.7114,129.74,129.73,0.0547832]
[1743174305555,0.05071672,129.75,129.73,0.0547832]
[1743174305857,7.7096,129.77,129.74,13.52127607]
[1743174306062,7.7096,129.77,129.74,16.10307607]
[1743174306251,28.44,129.83,129.76,13.52127607]
[1743174306753,28.44,129.83,129.76,16.06917607]
[1743174306953,0.05077228,129.81,129.78,0.05589049]
[1743174307153,7.7084,129.79,129.78,0.05589049]
[1743174308356,7.7081,129.8,129.78,0.05589049]
[1743174308556,0.05077228,129.81,129.78,13.57716656]
[1743174308957,7.7081,129.8,129.78,13.57716656]
[1743174309357,0.05077228,129.81,129.78,41.99716656]
[1743174309767,7.75827228,129.81,129.78,41.99716656]
[1743174310059,0.05077228,129.81,129.78,41.99716656]
[1743174310264,7.7081,129.8,129.78,41.99716656]
[1743174310460,0.05077228,129.81,129.78,41.99716656]
[1743174310956,0.05077228,129.81,129.78,0.05589049]
[1743174311860,7.7084,129.79,129.78,0.05589049]
[1743174315859,7.7114,129.74,129.73,28.46]
[1743174316374,7.712,129.73,129.72,230.19007607]
[1743174316567,7.712,129.73,129.72,214.0409]
[1743174316773,41.96127607,129.78,129.7,13.52127607]
[1743174316960,7.7129,129.72,129.71,0.05196271]
[1743174317967,7.7123,129.73,129.71,0.05196271]
[1743174318667,7.7126,129.72,129.71,0.05196271]
[1743174319565,7.7149,129.68,129.66,13.52127607]
[1743174319863,13.52127607,129.7,129.63,302.18133574]
[1743174320068,42.00127607,129.7,129.63,88.14043574]
[1743174320763,7.7173,129.64,129.63,85.54623574]
[1743174322457,7.77271405,129.65,129.62,0.05872088]
[1743174322962,0.05581405,129.65,129.62,13.57999695]
[1743174323165,0.05581405,129.65,129.62,0.05872088]
[1743174323665,7.7179,129.63,129.62,0.05872088]
[1743174323873,0.05581405,129.65,129.62,0.05872088]
[1743174324368,7.7176,129.64,129.62,0.05872088]
[1743174324563,0.05581405,129.65,129.62,13.57999695]
[1743174325066,0.05581405,129.65,129.62,42.05999695]
[1743174325270,0.05581405,129.65,129.64,13.52127607]
[1743174325465,0.05581405,129.65,129.64,21.23857607]
[1743174325670,0.05581405,129.65,129.64,13.52127607]
[1743174325866,5.2921,129.72,129.64,13.52127607]
[1743174326171,36.1941,129.7,129.64,13.52127607]
[1743174326373,28.48,129.7,129.64,13.52127607]
[1743174326873,36.1941,129.7,129.65,7.7164]
[1743174327173,0.04869862,129.68,129.66,0.05082837]
[1743174328269,7.7155,129.67,129.66,0.05082837]
[1743174328466,0.04869862,129.68,129.66,0.05082837]
[1743174328767,7.76409862,129.68,129.66,0.05082837]
[1743174330371,7.7155,129.67,129.66,0.05082837]
[1743174330572,0.04869862,129.68,129.66,0.05082837]
[1743174331072,7.76399862,129.68,129.66,0.05082837]
[1743174332274,0.04869862,129.68,129.66,0.05082837]
[1743174334069,28.8,129.67,129.62,23.4]
[1743174334276,50.38609739,129.67,129.62,23.4]
[1743174334568,2.7665,129.66,129.62,23.4]
[1743174335165,2.7665,129.66,129.63,0.05394943]
[1743174335166,7.7178,129.64,129.63,0.05394943]
[1743174341981,58.00609739,129.64,129.53,21.58609739]
[1743174342282,21.58609739,129.62,129.51,235.62699739]
[1743174342480,7.722,129.57,129.52,7.7242]
[1743174342683,28.7,129.61,129.51,235.62699739]
[1743174342884,28.7,129.61,129.51,264.32699739]
[1743174343088,7.7224,129.56,129.52,7.7244]
[1743174343279,0.05587977,129.57,129.55,21.63773274]
[1743174343481,28.7,129.64,129.56,28.7]
[1743174343677,7.7197,129.61,129.56,41.6672]
[1743174344388,7.7197,129.61,129.56,33.9455]
[1743174344588,0.05842615,129.6,129.57,0.05721693]
[1743174344987,0.05842615,129.6,129.57,7.77851693]
[1743174345283,28.7,129.64,129.57,21.64331432]
[1743174345486,28.72,129.66,129.59,21.58609739]
[1743174345686,7.7168,129.65,129.6,7.7194]
[1743174345888,257.1775,129.71,129.61,21.58609739]
[1743174346082,28.72,129.7,129.61,21.58609739]
[1743174346292,50.30609739,129.7,129.59,50.30609739]
[1743174346588,0.05868855,129.67,129.64,0.05871963]
[1743174346788,7.7167,129.65,129.64,0.05871963]
[1743174346988,7.7167,129.65,129.64,20.41871963]
[1743174347989,7.7164,129.66,129.64,20.41871963]
[1743174348186,28.77868855,129.67,129.64,20.41871963]
[1743174348584,7.7164,129.66,129.64,20.41871963]
[1743174349491,7.77448855,129.67,129.64,20.41871963]
[1743174349683,0.05868855,129.67,129.64,20.41871963]
[1743174350685,0.05868855,129.67,129.64,42.01544626]
[1743174351084,0.05868855,129.67,129.65,7.7164]
[1743174351894,0.05868855,129.67,129.64,49.73244626]
[1743174352195,0.05868855,129.67,129.64,42.01544626]
[1743174353699,0.05868855,129.67,129.64,49.73264626]
[1743174354200,7.77428855,129.67,129.64,42.01544626]
[1743174354402,0.05868855,129.67,129.64,20.41871963]
[1743174355700,7.7167,129.65,129.64,20.41871963]
[1743174358703,36.3762,129.66,129.64,20.41871963]
[1743174358898,0.05868855,129.67,129.64,20.41871963]
[1743174360005,7.7167,129.65,129.64,20.41871963]
[1743174361706,0.05868855,129.67,129.64,20.41871963]